bitfinex-derivatives/quotes_SOLF0:USTF0_20250211
["timestamp","ask_amount","ask_price","bid_price","bid_amount"]
[1739257228167,0.0359661,205.61,205.56,5.70940816]
[1739257229169,5.74537426,205.61,205.54,5.70940816]
[1739257229370,5.70940816,205.59,205.52,5.70940816]
[1739257230473,5.70940816,205.59,205.53,4.8647]
[1739257230665,191.0,205.67,205.47,4.6113]
[1739257230869,5.70940816,205.62,205.55,5.70940816]
[1739257231371,5.70940816,205.62,205.57,4.8637]
[1739257231972,0.03557765,205.62,205.58,4.8635]
[1739257232375,0.03557765,205.62,205.57,0.03568044]
[1739257232376,0.03557765,205.62,205.57,5.7450886]
[1739257232572,0.03557765,205.62,205.59,5.70940816]
[1739257232768,0.03557765,205.62,205.61,5.70940816]
[1739257233473,0.03557765,205.62,205.61,10.57220816]
[1739257237570,0.03557765,205.62,205.61,5.70940816]
[1739257238779,0.03557765,205.62,205.59,10.57260816]
[1739257239982,0.03557765,205.62,205.57,5.7450886]
[1739257240180,5.74498581,205.62,205.57,0.03568044]
[1739257240574,10.60758581,205.62,205.57,0.03568044]
[1739257242282,4.8628,205.61,205.57,0.03568044]
[1739257242877,5.74498581,205.62,205.57,0.03568044]
[1739257243483,5.74498581,205.62,205.57,5.7450886]
[1739257243787,0.03557765,205.62,205.57,5.7450886]
[1739257244482,0.03557765,205.62,205.57,8.86e-05]
[1739257244774,5.74498581,205.62,205.55,5.70940816]
[1739257244976,5.74498581,205.62,205.48,3.42]
[1739257244977,5.70940816,205.6,205.53,5.70940816]
[1739257245179,5.70940816,205.6,205.53,10.57410816]
[1739257245776,0.03552727,205.59,205.53,10.57410816]
[1739257246588,0.03552727,205.59,205.53,5.70940816]
[1739257246984,0.03552727,205.59,205.55,5.70940816]
[1739257247185,0.03552727,205.59,205.57,4.8636]
[1739257247386,0.03552727,205.59,205.57,10.57300816]
[1739257247590,0.03552727,205.59,205.57,5.70940816]
[1739257247785,0.03552727,205.59,205.58,4.8635]
[1739257256393,0.03552727,205.59,205.57,4.8635]
[1739257256595,0.03552727,205.59,205.5,8.93710534]
[1739257256794,0.03552727,205.59,205.54,8.93710534]
[1739257257793,0.03552727,205.59,205.58,4.8635]
[1739257261698,0.03552727,205.59,205.51,8.93710534]
[1739257262095,0.03552727,205.59,205.54,8.93710534]
[1739257262293,0.03552727,205.59,205.58,4.8635]
[1739257264004,0.03552727,205.59,205.51,8.93710534]
[1739257264398,0.03552727,205.59,205.48,8.93710534]
[1739257265305,4.89892727,205.59,205.52,4.8647]
[1739257266206,0.03552727,205.59,205.52,4.8647]
[1739257266603,0.03552727,205.59,205.48,8.93710534]
[1739257266805,0.03552727,205.59,205.51,8.93710534]
[1739257267508,0.03552727,205.59,205.53,4.8646]
[1739257268203,0.03552727,205.59,205.51,8.93710534]
[1739257268403,4.89882727,205.59,205.52,4.8649]
[1739257268804,0.03552727,205.59,205.53,4.8647]
[1739257269008,0.03552727,205.59,205.51,8.93710534]
[1739257270811,0.03552727,205.59,205.54,4.8644]
[1739257271707,0.03552727,205.59,205.54,10.58736743]
[1739257273406,0.03552727,205.59,205.56,4.8638]
[1739257274511,0.03552727,205.59,205.54,5.72296743]
[1739257274715,0.03552727,205.59,205.55,4.8642]
[1739257276114,0.03552727,205.59,205.56,4.8639]
[1739257277109,0.03552727,205.59,205.54,5.72296743]
[1739257277311,0.03552727,205.59,205.54,10.58716743]
[1739257277511,0.03552727,205.59,205.54,5.72296743]
[1739257278716,0.03552727,205.59,205.54,10.58736743]
[1739257279720,0.03552727,205.59,205.47,4.6113]
[1739257279721,5.7584947,205.59,205.52,5.72296743]
[1739257280915,4.8636,205.58,205.52,5.72296743]
[1739257281221,5.72296743,205.57,205.5,5.72296743]
[1739257281618,0.0314487,205.56,205.5,5.72296743]
[1739257281922,0.0314487,205.56,205.5,10.58816743]
[1739257283021,0.0314487,205.56,205.5,5.72296743]
[1739257283216,0.0314487,205.56,205.51,4.8651]
[1739257283422,0.0314487,205.56,205.5,5.72296743]
[1739257284021,0.0314487,205.56,205.51,4.8651]
[1739257285422,0.0314487,205.56,205.52,4.8649]
[1739257286625,0.0314487,205.56,205.52,5.72296743]
[1739257287418,0.0314487,205.56,205.53,4.8646]
[1739257288425,0.0314487,205.56,205.52,10.58786743]
[1739257290221,0.0314487,205.56,205.52,5.72296743]
[1739257291119,0.0314487,205.56,205.51,4.8651]
[1739257291326,5.72296743,205.55,205.48,5.72296743]
[1739257291523,5.72296743,205.53,205.48,5.72296743]
[1739257292527,5.72296743,205.55,205.5,4.8652]
[1739257292730,0.0314487,205.56,205.52,5.72296743]
[1739257293122,0.0314487,205.56,205.54,4.8644]
[1739257293827,5.72296743,205.55,205.48,5.72296743]
[1739257294026,0.0314487,205.56,205.47,1.5843]
[1739257294027,0.0314487,205.56,205.5,5.72296743]
[1739257294227,0.0314487,205.56,205.52,5.72296743]
[1739257294635,0.0314487,205.56,205.54,5.72296743]
[1739257294828,0.0314487,205.56,205.55,4.8642]
[1739257296834,0.0314487,205.56,205.53,4.8645]
[1739257297637,5.72296743,205.55,205.5,4.8654]
[1739257297832,5.72296743,205.55,205.48,5.72296743]
[1739257299533,5.72296743,205.55,205.51,4.8652]
[1739257301641,5.72296743,205.55,205.52,4.8649]
[1739257301939,5.72296743,205.55,205.48,5.72296743]
[1739257302233,5.72296743,205.55,205.5,4.8654]
[1739257302438,5.72296743,205.55,205.48,5.72296743]
[1739257304236,5.72296743,205.53,205.51,4.865]
[1739257304432,5.72296743,205.53,205.46,5.72296743]
[1739257304632,5.72296743,205.53,205.44,5.72296743]
[1739257304832,5.72296743,205.49,205.42,5.72296743]
[1739257305541,5.72296743,205.49,205.47,4.866]
[1739257305839,5.72296743,205.49,205.4,5.72296743]
[1739257306141,5.72296743,205.48,205.42,5.72296743]
[1739257306334,0.03683179,205.47,205.44,5.72296743]
[1739257306539,5.72296743,205.52,205.46,10.58926743]
[1739257306844,0.03504414,205.48,205.46,5.72296743]
[1739257307043,0.03504414,205.48,205.47,4.8659]
[1739257308848,7.27346743,205.58,205.54,4.8642]
[1739257309051,5.72296743,205.58,205.51,5.72296743]
[1739257310043,5.72296743,205.56,205.52,4.89941912]
[1739257310746,5.72296743,205.56,205.53,4.8646]
[1739257311740,0.0369258,205.57,205.52,0.03461912]
[1739257313042,5.72296743,205.56,205.55,4.8641]
[1739257313242,5.72296743,205.56,205.52,0.03461912]
[1739257313439,5.72296743,205.56,205.53,4.8645]
[1739257313647,5.72296743,205.56,205.52,0.03461912]
[1739257314240,5.72296743,205.56,205.53,4.8647]
[1739257315049,5.72296743,205.54,205.52,0.03461912]
[1739257316447,10.58746743,205.54,205.52,0.03461912]
[1739257317248,5.72296743,205.54,205.52,0.03461912]
[1739257317441,4.8647,205.53,205.52,0.03461912]
[1739257317845,5.72296743,205.54,205.46,4.8662]
[1739257317846,4.8651,205.52,205.46,4.8662]
[1739257318052,194.0476,205.56,205.4,27.98525521]
[1739257318053,5.72296743,205.47,205.4,27.98525521]
[1739257318342,5.72296743,205.45,205.4,26.53655521]
[1739257318547,5.72296743,205.43,205.4,31.40415521]
[1739257318750,5.72296743,205.43,205.4,4.8676]
[1739257319542,5.72296743,205.43,205.37,12.35710623]
[1739257319750,5.72296743,205.41,205.37,6.6341388]
[1739257320050,5.72296743,205.39,205.37,6.6341388]
[1739257322655,5.72296743,205.39,205.33,4.8692]
[1739257322947,5.72296743,205.37,205.33,4.8692]
[1739257323748,5.72296743,205.37,205.35,4.8689]
[1739257323955,5.72296743,205.35,205.29,5.72296743]
[1739257324353,5.72296743,205.35,205.34,4.8692]
[1739257324858,5.72296743,205.37,205.29,5.72296743]
[1739257325054,0.03539792,205.38,205.36,4.8687]
[1739257325247,5.72296743,205.37,205.31,5.72296743]
[1739257325448,5.72296743,205.37,205.29,5.72296743]
[1739257325653,8.96498889,205.37,205.28,1.4619]
[1739257326054,13.83348889,205.37,205.24,8.96498889]
[1739257326254,8.96498889,205.34,205.23,1.4619]
[1739257326559,8.96498889,205.31,205.23,1.4619]
[1739257326958,0.03614052,205.32,205.23,1.4619]
[1739257327257,0.03614052,205.32,205.25,4.8712]
[1739257327558,0.03614052,205.32,205.23,1.4619]
[1739257327759,0.03614052,205.32,205.27,4.8707]
[1739257327954,0.03614052,205.32,205.23,1.4619]
[1739257328657,0.03614052,205.32,205.27,4.8707]
[1739257329057,0.03614052,205.32,205.23,1.4619]
[1739257329755,0.03614052,205.32,205.29,4.8703]
[1739257330558,0.03614052,205.32,205.27,4.8706]
[1739257330755,0.03614052,205.32,205.23,1.4619]
[1739257331962,0.03614052,205.32,205.28,4.8706]
[1739257332554,0.03614052,205.32,205.25,4.8712]
[1739257332860,0.03614052,205.32,205.23,1.4619]
[1739257333061,0.03614052,205.32,205.28,4.8704]
[1739257333555,8.96498889,205.31,205.23,1.4619]
[1739257333763,8.96498889,205.31,205.25,4.8711]
[1739257334150,8.96498889,205.31,205.26,4.8711]
[1739257334458,8.96498889,205.31,205.18,8.96498889]
[1739257334655,8.96498889,205.31,205.21,4.8721]
[1739257334959,0.03103235,205.27,205.18,8.96498889]
[1739257335353,0.03103235,205.27,205.26,4.8711]
[1739257335755,0.03103235,205.27,205.18,8.96498889]
[1739257336659,0.03103235,205.27,205.23,4.8716]
[1739257337257,0.03103235,205.27,205.15,3.42]
[1739257337258,0.03103235,205.27,205.15,12.38498889]
[1739257337458,8.96498889,205.25,205.15,3.42]
[1739257337960,0.03146966,205.22,205.15,3.42]
[1739257338156,0.03146966,205.22,205.17,4.8732]
[1739257338462,0.03146966,205.22,205.13,2.9565]
[1739257338463,8.99645855,205.22,205.13,2.9565]
[1739257338656,8.99645855,205.22,205.19,4.8726]
[1739257338858,0.03146966,205.22,205.19,4.8726]
[1739257339456,0.03146966,205.22,205.2,4.8725]
[1739257340860,0.03146966,205.22,205.13,2.9565]
[1739257341062,8.99645855,205.22,205.13,2.9565]
[1739257342967,0.03146966,205.22,205.13,2.9565]
[1739257343168,0.03146966,205.22,205.19,4.8725]
[1739257343668,0.03146966,205.22,205.13,2.9565]
[1739257343869,0.03146966,205.22,205.2,4.8724]
[1739257344464,0.03146966,205.22,205.13,2.9565]
[1739257345068,8.99645855,205.22,205.18,4.873]
[1739257345264,8.99645855,205.22,205.13,2.9565]
[1739257345466,8.99645855,205.22,205.12,1.5151]
[1739257345667,8.99645855,205.22,205.09,8.96498889]
[1739257345870,8.96498889,205.22,205.12,4.8742]
[1739257346169,0.03657054,205.18,205.06,8.96498889]
[1739257346369,0.03657054,205.18,205.12,4.8743]
[1739257347660,0.03657054,205.18,205.13,4.8741]
[1739257347865,0.03657054,205.18,205.06,8.96498889]
[1739257348065,8.96498889,205.16,205.05,4.4324]
[1739257348267,8.96498889,205.13,205.0,8.96498889]
[1739257348463,8.99753334,205.13,205.0,8.96498889]
[1739257348664,8.96498889,205.1,204.97,8.96498889]
[1739257348865,0.03091163,205.09,204.97,8.96498889]
[1739257349376,0.03091163,205.09,205.02,4.8768]
[1739257349970,8.96498889,205.04,204.97,4.8778]
[1739257350278,8.96498889,205.04,204.93,26.53655521]
[1739257350570,0.03145849,205.03,204.93,26.53655521]
[1739257350771,0.03145849,205.03,204.99,4.8775]
[1739257350971,0.03145849,205.03,204.93,26.53655521]
[1739257351373,0.03145849,205.03,204.94,8.96498889]
[1739257351671,0.03145849,205.03,204.97,8.96498889]
[1739257351872,0.03145849,205.03,204.98,4.5349]
[1739257352072,0.03145849,205.03,205.01,4.877]
[1739257352763,8.96498889,205.13,205.06,4.8757]
[1739257353272,8.96498889,205.13,205.0,8.96498889]
[1739257354073,0.03463502,205.09,205.04,0.03276822]
[1739257355171,0.03463502,205.09,205.08,4.8754]
[1739257356975,0.03463502,205.09,205.04,0.03276822]
[1739257357176,0.03463502,205.09,205.06,4.8757]
[1739257358078,0.03463502,205.09,205.07,4.8756]
[1739257358374,0.03463502,205.09,205.04,0.03276822]
[1739257358774,0.03463502,205.09,205.05,4.8759]
[1739257358976,0.03463502,205.09,205.04,0.03276822]
[1739257360978,0.03463502,205.09,205.07,4.8754]
[1739257361174,0.03463502,205.09,205.04,0.03276822]
[1739257363678,0.03463502,205.09,205.07,4.8755]
[1739257364484,0.03463502,205.09,205.08,4.8754]
[1739257364879,0.03463502,205.09,205.04,0.03276822]
[1739257365081,0.03463502,205.09,205.05,4.8758]
[1739257365881,0.03463502,205.09,205.06,4.8758]
[1739257368187,0.03463502,205.09,205.05,4.876]
[1739257369985,0.03463502,205.09,205.06,4.8757]
[1739257370186,0.03463502,205.09,205.04,0.03276822]
[1739257371386,0.03463502,205.09,205.08,4.8754]
[1739257378788,1.4526,205.18,205.13,4.8739]
[1739257378988,4.8734,205.17,205.06,10.41508889]
[1739257379188,1.4526,205.18,205.06,10.41508889]
[1739257379890,0.035796,205.14,205.1,0.03745084]
[1739257380284,0.035796,205.14,205.13,4.8742]
[1739257380684,1.548,205.24,205.12,8.96498889]
[1739257380891,1.548,205.24,205.17,4.873]
[1739257381086,11.99848889,205.28,205.15,8.96498889]
[1739257381491,4.871,205.27,205.19,4.8727]
[1739257381793,11.99848889,205.28,205.19,4.8727]
[1739257381993,19.83657,205.2,205.19,4.8727]
[1739257382189,14.33627,205.2,205.19,4.8727]
[1739257382593,7e-05,205.2,205.19,4.8727]
[1739257382796,9.685e-05,205.22,205.21,4.8723]
[1739257382997,9.685e-05,205.22,205.21,13.83728889]
[1739257384294,65.19803272,205.3,205.26,4.8709]
[1739257384495,65.19803272,205.3,205.21,8.96498889]
[1739257384695,65.19803272,205.3,205.24,8.96498889]
[1739257385393,65.19803272,205.3,205.21,8.96498889]
[1739257385698,0.03384864,205.29,205.25,0.03130862]
[1739257386396,8.96498889,205.28,205.25,0.03130862]
[1739257386898,4.8711,205.26,205.25,0.03130862]
[1739257388893,8.96498889,205.28,205.06,87.72]
[1739257389097,8.96498889,205.22,205.09,12.40498889]
[1739257389788,4.8724,205.21,205.13,4.8742]
[1739257389990,8.96498889,205.22,205.09,12.40498889]
[1739257390191,0.03730809,205.19,205.15,0.03224619]
[1739257394197,0.03730809,205.19,205.16,4.8734]
[1739257394701,0.03730809,205.19,205.15,0.03224619]
[1739257395901,0.03730809,205.19,205.18,4.873]
[1739257398204,0.00470809,205.19,205.18,4.873]
[1739257398406,0.00470809,205.19,205.18,13.83798889]
[1739257399201,191.0,205.29,205.18,8.96498889]
[1739257399397,68.19953272,205.3,205.21,8.96498889]
[1739257400501,0.03522742,205.28,205.23,0.03519729]
[1739257400807,0.03522742,205.28,205.26,4.8709]
[1739257402305,0.03522742,205.28,205.23,0.03519729]
[1739257404606,4.8709,205.27,205.23,0.03519729]
[1739257404808,9.00021631,205.28,205.23,0.03519729]
[1739257405106,4.8719,205.23,205.17,4.8732]
[1739257405296,4.8719,205.23,205.12,12.40498889]
[1739257405804,4.8719,205.23,205.12,3.44]
[1739257406001,4.8723,205.21,205.14,4.8737]
[1739257406410,0.03383431,205.2,205.15,0.03096809]
[1739257406603,4.90633431,205.2,205.15,0.03096809]
[1739257407106,0.03383431,205.2,205.15,0.03096809]
[1739257413814,4.90653431,205.2,205.15,0.03096809]
[1739257414315,0.03383431,205.2,205.15,0.03096809]
[1739257414914,0.03383431,205.2,205.16,4.8733]
[1739257415113,0.03383431,205.2,205.15,0.03096809]
[1739257415506,0.03383431,205.2,205.16,4.8733]
[1739257415811,0.03383431,205.2,205.15,0.03096809]
[1739257416914,0.03383431,205.2,205.18,4.8729]
[1739257417109,0.03383431,205.2,205.15,0.03096809]
[1739257417612,0.03383431,205.2,205.15,8.99595698]
[1739257418115,0.03383431,205.2,205.18,4.8728]
[1739257418613,0.03383431,205.2,205.15,8.99595698]
[1739257418614,0.03383431,205.2,205.19,4.8727]
[1739257419408,3.431e-05,205.2,205.19,4.8727]
[1739257425119,4.8699,205.32,205.25,4.8712]
[1739257425314,11.93098889,205.34,205.21,8.96498889]
[1739257426019,4.8699,205.31,205.23,4.8716]
[1739257426420,0.03465028,205.29,205.25,0.03384281]
[1739257426820,0.03465028,205.29,205.27,4.8708]
[1739257427018,0.03465028,205.29,205.25,0.03384281]
[1739257427622,0.03465028,205.29,205.27,4.8708]
[1739257427923,0.03465028,205.29,205.25,0.03384281]
[1739257431415,4.90505028,205.29,205.25,0.03384281]
[1739257431620,0.03465028,205.29,205.25,0.03384281]
[1739257432718,0.03465028,205.29,205.25,4.90514281]
[1739257433224,0.03465028,205.29,205.25,0.03384281]
[1739257433416,4.8706,205.28,205.25,0.03384281]
[1739257433817,0.03465028,205.29,205.25,0.03384281]
[1739257435225,4.8707,205.28,205.25,0.03384281]
[1739257435416,0.03465028,205.29,205.25,0.03384281]
[1739257435718,4.90525028,205.29,205.25,0.03384281]
[1739257435924,0.03465028,205.29,205.25,0.03384281]
[1739257436223,0.03465028,205.29,205.22,4.872]
[1739257436426,8.96498889,205.31,205.22,4.872]
[1739257436823,8.96498889,205.31,205.15,8.96498889]
[1739257437224,0.03689253,205.25,205.21,0.03666229]
[1739257437423,0.03689253,205.25,205.23,4.8718]
[1739257438917,0.03689253,205.25,205.21,0.03666229]
[1739257439122,0.03689253,205.25,205.22,4.872]
[1739257440524,0.03689253,205.25,205.21,0.03666229]
[1739257440827,0.03689253,205.25,205.24,4.8716]
[1739257441825,0.01062194,205.25,205.24,13.83658889]
[1739257442221,0.01062194,205.25,205.24,4.8716]
[1739257442919,0.01062194,205.25,205.21,9.00165118]
[1739257443630,0.01062194,205.25,205.22,4.872]
[1739257443829,0.01062194,205.25,205.21,9.00165118]
[1739257444129,0.01062194,205.25,205.24,4.8716]
[1739257445033,0.01062194,205.25,205.23,4.8718]
[1739257445632,0.01062194,205.25,205.21,0.03666229]
[1739257445823,0.01062194,205.25,205.24,4.8716]
[1739257448137,0.01062194,205.25,205.24,10.61263365]
[1739257449739,0.01062194,205.25,205.24,13.83783065]
[1739257450240,2.966,205.34,205.24,8.96623065]
[1739257450742,2.966,205.34,205.29,4.8704]
[1739257451142,2.966,205.34,205.24,8.96623065]
[1739257451338,0.03179499,205.31,205.29,4.8703]
[1739257451541,0.03179499,205.31,205.27,0.03133743]
[1739257452639,0.03179499,205.31,205.29,4.8702]
[1739257453043,0.03179499,205.31,205.27,0.03133743]
[1739257453242,0.03179499,205.31,205.3,4.8701]
[1739257458645,0.03179499,205.31,205.29,4.8703]
[1739257458843,0.03179499,205.31,205.27,0.03133743]
[1739257459744,0.03179499,205.31,205.3,4.8701]
[1739257460349,9.499e-05,205.31,205.3,4.8701]
[1739257460943,3.1642,205.39,205.28,8.96623065]
[1739257461154,3.1642,205.39,205.37,4.8685]
[1739257461647,3.1642,205.39,205.32,8.96623065]
[1739257461849,3.1642,205.39,205.38,4.8682]
[1739257463148,0.03369607,205.41,205.38,4.8682]
[1739257463849,0.03369607,205.41,205.39,4.868]
[1739257464551,0.03369607,205.41,205.4,4.8678]
[1739257464853,0.03369607,205.41,205.36,0.03598487]
[1739257465148,0.03369607,205.41,205.38,4.8681]
[1739257465351,0.03369607,205.41,205.36,0.03598487]
[1739257467447,0.03369607,205.41,205.38,4.868]
[1739257467741,0.03369607,205.41,205.36,0.03598487]
[1739257468149,0.03369607,205.41,205.39,4.8678]
[1739257468452,0.03369607,205.41,205.36,0.03598487]
[1739257468653,0.03369607,205.41,205.37,4.8684]
[1739257468846,0.03369607,205.41,205.36,0.03598487]
[1739257469342,8.96623065,205.4,205.36,0.03598487]
[1739257469543,8.96623065,205.4,205.26,12.40623065]
[1739257470154,4.8685,205.37,205.31,4.8697]
[1739257470753,0.03213017,205.36,205.32,4.9053089]
[1739257471154,0.03213017,205.36,205.32,0.0359089]
[1739257471855,0.03213017,205.36,205.32,5.77247004]
[1739257472048,0.03213017,205.36,205.34,5.73656114]
[1739257472654,0.03213017,205.36,205.35,4.8689]
[1739257478256,0.03213017,205.36,205.34,5.73656114]
[1739257478462,0.03213017,205.36,205.33,4.8694]
[1739257479355,0.03213017,205.36,205.32,10.64207004]
[1739257480060,0.03213017,205.36,205.32,4.9055089]
[1739257480359,5.76869131,205.36,205.32,0.0359089]
[1739257481159,0.03213017,205.36,205.32,4.9055089]
[1739257481864,0.03213017,205.36,205.32,0.0359089]
[1739257483061,0.03213017,205.36,205.32,4.9054089]
[1739257483966,0.03213017,205.36,205.32,0.0359089]
[1739257484165,0.03213017,205.36,205.33,4.8694]
[1739257485259,0.03213017,205.36,205.32,4.9055089]
[1739257485465,0.03213017,205.36,205.32,0.0359089]
[1739257485766,5.76869131,205.36,205.32,0.0359089]
[1739257485966,5.73656114,205.34,205.32,0.0359089]
[1739257486558,10.60586114,205.34,205.32,0.0359089]
[1739257487362,4.8694,205.33,205.27,4.8708]
[1739257487868,5.73656114,205.34,205.26,5.73656114]
[1739257488264,5.73656114,205.34,205.28,5.73656114]
[1739257488469,0.03622885,205.32,205.28,5.77032601]
[1739257488964,0.03622885,205.32,205.3,4.8699]
[1739257489471,0.03622885,205.32,205.28,5.77032601]
[1739257489767,0.03622885,205.32,205.3,4.8701]
[1739257490365,0.03622885,205.32,205.31,4.8699]
[1739257490565,0.03622885,205.32,205.28,5.77032601]
[1739257491169,0.03622885,205.32,205.28,0.03376487]
[1739257491774,5.77278999,205.32,205.28,0.03376487]
[1739257491961,10.64248999,205.32,205.28,0.03376487]
[1739257493071,5.77278999,205.32,205.28,0.03376487]
[1739257493462,0.03622885,205.32,205.28,0.03376487]
[1739257493663,0.03622885,205.32,205.28,5.77032601]
[1739257494273,0.03622885,205.32,205.29,4.8701]
[1739257495172,0.03622885,205.32,205.3,4.8701]
[1739257495373,0.03622885,205.32,205.28,0.03376487]
[1739257495568,5.77278999,205.32,205.28,0.03376487]
[1739257497478,5.77278999,205.32,205.29,4.8701]
[1739257497675,0.03622885,205.32,205.29,4.8701]
[1739257498275,0.03622885,205.32,205.28,0.03376487]
[1739257498678,0.03622885,205.32,205.28,5.77032601]
[1739257499680,0.03622885,205.32,205.28,0.03376487]
[1739257499869,5.77278999,205.32,205.28,0.03376487]
[1739257501779,0.03622885,205.32,205.28,0.03376487]
[1739257501981,0.03622885,205.32,205.28,5.77032601]
[1739257502372,0.03622885,205.32,205.31,4.8699]
[1739257502879,2.885e-05,205.32,205.31,4.8699]
[1739257508582,2.885e-05,205.32,205.3,10.60666114]
[1739257508978,2.885e-05,205.32,205.31,4.8699]
[1739257510585,4.4515,205.42,205.37,4.8683]
[1739257510784,4.4515,205.42,205.37,10.60486114]
[1739257510980,2.975,205.42,205.37,10.60486114]
[1739257511284,5.73656114,205.48,205.39,5.73656114]
[1739257511479,10.60246114,205.48,205.41,5.73656114]
[1739257511680,0.03368484,205.44,205.41,5.73656114]
[1739257512784,0.03368484,205.44,205.42,4.8672]
[1739257512985,0.03368484,205.44,205.41,5.73656114]
[1739257513179,5.77024598,205.44,205.4,0.03541865]
[1739257513678,4.8673,205.42,205.4,0.03541865]
[1739257514079,5.77024598,205.44,205.4,0.03541865]
[1739257514280,10.63724598,205.44,205.4,0.03541865]
[1739257515086,5.77024598,205.44,205.4,0.03541865]
[1739257515481,10.63704598,205.44,205.4,0.03541865]
[1739257516186,0.03368484,205.44,205.41,4.8675]
[1739257516688,0.03368484,205.44,205.4,0.03541865]
[1739257517283,0.03368484,205.44,205.4,4.90321865]
[1739257517887,4.8672,205.43,205.4,0.03541865]
[1739257518091,5.73656114,205.42,205.38,4.868]
[1739257518287,7.22276114,205.42,205.38,4.868]
[1739257518687,12.09006114,205.42,205.37,4.8684]
[1739257519190,12.09006114,205.42,205.37,4.90059789]
[1739257519387,10.60446114,205.4,205.37,0.03219789]
[1739257519592,5.73656114,205.38,205.31,5.73656114]
[1739257520785,4.90229401,205.37,205.32,0.03268252]
[1739257521187,5.73656114,205.36,205.32,0.03268252]
[1739257521490,5.73656114,205.34,205.32,0.03268252]
[1739257523191,10.60536114,205.36,205.32,0.03268252]
[1739257523390,5.73656114,205.36,205.32,0.03268252]
[1739257523594,5.73656114,205.34,205.25,5.73656114]
[1739257523794,5.73656114,205.31,205.25,5.73656114]
[1739257524187,12.14826114,205.31,205.25,5.73656114]
[1739257524798,0.03537867,205.3,205.26,0.03700877]
[1739257527984,0.03537867,205.3,205.27,5.73656114]
[1739257528593,0.03537867,205.3,205.28,4.8706]
[1739257529291,0.03537867,205.3,205.27,10.60736114]
[1739257530194,0.03537867,205.3,205.27,4.8708]
[1739257530694,0.03537867,205.3,205.26,0.03700877]
[1739257531295,10.60696114,205.29,205.26,0.03700877]
[1739257531596,5.73656114,205.27,205.21,5.73656114]
[1739257531796,10.60756114,205.27,205.21,4.8721]
[1739257532897,10.60756114,205.27,205.19,5.73656114]
[1739257532898,0.03137738,205.26,205.22,4.8719]
[1739257533399,0.03137738,205.26,205.21,5.73656114]
[1739257533698,0.03137738,205.26,205.18,8.97193449]
[1739257534398,0.03137738,205.26,205.22,4.8718]
[1739257534897,0.03137738,205.26,205.2,4.8723]
[1739257535396,4.90267738,205.26,205.2,4.8723]
[1739257535893,4.90267738,205.26,205.21,4.8723]
[1739257536296,0.03137738,205.26,205.15,8.97193449]
[1739257537199,0.03137738,205.26,205.12,8.97193449]
[1739257537398,8.97193449,205.25,205.12,8.97193449]
[1739257537599,0.03273,205.21,205.14,4.8738]
[1739257537897,0.03273,205.21,205.12,8.97193449]
[1739257539100,4.90503,205.21,205.15,4.8735]
[1739257539991,0.03273,205.21,205.12,8.97193449]
[1739257540801,0.03273,205.21,205.16,8.97193449]
[1739257541302,0.03273,205.21,205.17,4.8731]
[1739257541508,0.03273,205.21,205.16,8.97193449]
[1739257541904,0.03273,205.21,205.19,4.8725]
[1739257542404,0.03273,205.21,205.16,8.97193449]
[1739257543007,0.03273,205.21,205.2,4.8725]
[1739257543808,3e-05,205.21,205.2,4.8725]
[1739257543999,1.5419,205.28,205.19,8.97193449]
[1739257544307,1.5419,205.28,205.23,8.97193449]
[1739257545007,1.5419,205.28,205.27,4.8708]
[1739257545200,1.57905104,205.28,205.27,4.8708]
[1739257546610,0.03715104,205.28,205.27,4.8708]
[1739257547308,0.03715104,205.28,205.25,4.8711]
[1739257547704,0.03715104,205.28,205.26,4.871]
[1739257549711,0.03715104,205.28,205.27,4.8708]
[1739257551113,0.03715104,205.28,205.23,9.00415981]
[1739257551315,0.03715104,205.28,205.23,0.03222532]
[1739257551812,0.03715104,205.28,205.27,4.8708]
[1739257563514,0.03715104,205.28,205.26,10.61028037]
[1739257564518,0.03715104,205.28,205.26,5.73928037]
[1739257566816,0.03715104,205.28,205.26,10.61018037]
[1739257567121,0.03715104,205.28,205.26,5.73928037]
[1739257567722,0.03715104,205.28,205.27,4.8708]
[1739257569117,0.03715104,205.28,205.26,5.73928037]
[1739257569715,0.03715104,205.28,205.24,5.73928037]
[1739257569913,0.03715104,205.28,205.24,10.61078037]
[1739257572322,0.03715104,205.28,205.24,5.73928037]
[1739257572718,5.73928037,205.27,205.23,0.03222532]
[1739257572926,10.61018037,205.27,205.23,0.03222532]
[1739257573120,7.28008037,205.27,205.23,0.03222532]
[1739257573420,1.5408,205.27,205.23,0.03222532]
[1739257574823,1.5408,205.27,205.23,4.90382532]
[1739257575625,1.5408,205.27,205.23,0.03222532]
[1739257576224,7.28008037,205.27,205.23,0.03222532]
[1739257576726,12.15088037,205.27,205.23,0.03222532]